bitfinex/quotes_BTCUSD_20240719
["timestamp","ask_amount","ask_price","bid_price","bid_amount"]
[1721378185558,0.0619,63807.0,63804.0,0.002494]
[1721378185756,0.218623,63807.0,63805.0,0.15438174]
[1721378185959,0.391344,63808.0,63805.0,0.15438174]
[1721378185960,0.0779,63808.0,63805.0,0.15438174]
[1721378186162,0.15672,63808.0,63805.0,0.15438174]
[1721378186649,0.313434,63810.0,63805.0,0.15438174]
[1721378186650,0.156723,63807.0,63805.0,0.15438174]
[1721378187380,0.156723,63807.0,63805.0,0.16838174]
[1721378187605,0.15672,63808.0,63805.0,0.16838174]
[1721378187812,0.156725,63806.0,63805.0,0.16838174]
[1721378188015,0.156725,63806.0,63805.0,0.18238174]
[1721378188187,0.156722,63807.0,63805.0,0.18238174]
[1721378188837,0.156722,63807.0,63805.0,0.19638174]
[1721378189769,0.156722,63807.0,63805.0,0.16838174]
[1721378189977,0.15672,63808.0,63805.0,0.17738174]
[1721378190179,0.15672,63808.0,63805.0,0.15438174]
[1721378190553,0.15672,63808.0,63805.0,0.16138174]
[1721378190757,0.156719,63809.0,63805.0,0.16938174]
[1721378190963,0.156719,63809.0,63805.0,0.16138174]
[1721378191134,0.156719,63809.0,63806.0,0.002494]
[1721378191492,0.156719,63809.0,63807.0,0.15438174]
[1721378193767,0.156719,63809.0,63807.0,0.16038174]
[1721378194280,0.15672,63808.0,63807.0,0.16538174]
[1721378195277,0.15672,63808.0,63807.0,0.16038174]
[1721378196470,0.156717,63809.0,63807.0,0.15438174]
[1721378196675,0.156717,63809.0,63807.0,0.16038174]
[1721378196908,0.156717,63809.0,63807.0,0.16738174]
[1721378197117,0.313431,63810.0,63807.0,0.16738174]
[1721378197118,0.15672,63808.0,63807.0,0.16738174]
[1721378197328,0.15672,63808.0,63807.0,0.16138174]
[1721378197532,0.15672,63808.0,63807.0,0.16638174]
[1721378197740,0.15672,63808.0,63807.0,0.15938174]
[1721378197953,0.15672,63808.0,63807.0,0.16538174]
[1721378198183,0.313406,63815.0,63810.0,0.156714]
[1721378198420,0.313406,63815.0,63811.0,0.15687574]
[1721378198638,0.156706,63814.0,63811.0,0.15438174]
[1721378198900,0.156698,63817.0,63812.0,0.390919]
[1721378199109,0.156698,63817.0,63813.0,0.31358274]
[1721378199565,0.0003,63829.0,63815.0,0.69460524]
[1721378199711,0.37644195,63905.0,63815.0,0.69460524]
[1721378199931,0.04679872,63841.0,63815.0,0.69460524]
[1721378200140,0.0654,63929.0,63903.0,0.01636103]
[1721378200141,0.11686848,63927.0,63903.0,0.01636103]
[1721378200340,0.002,63929.0,63928.0,0.469276]
[1721378200554,0.002,63929.0,63928.0,0.92566711]
[1721378200765,0.46304871,63944.0,63943.0,0.923445]
[1721378200967,0.07855958,63948.0,63943.0,0.1415]
[1721378201176,0.07855958,63948.0,63929.0,0.003094]
[1721378201177,0.2266,63945.0,63944.0,0.46538649]
[1721378201416,0.46304871,63961.0,63944.0,0.46538649]
[1721378201417,0.07840885,63952.0,63944.0,0.34684889]
[1721378201598,0.07820548,63960.0,63945.0,1.5261719]
[1721378201811,0.07820548,63960.0,63932.0,0.312829]
[1721378201812,0.07877369,63965.0,63959.0,0.13807811]
[1721378202016,0.07829038,63965.0,63964.0,0.62339374]
[1721378202217,0.07829038,63965.0,63964.0,0.98685815]
[1721378202428,0.07829038,63965.0,63964.0,1.19072278]
[1721378202637,0.07829038,63965.0,63964.0,0.83247641]
[1721378202837,0.07829038,63965.0,63964.0,0.98685815]
[1721378203041,0.38378766,63965.0,63964.0,0.34684889]
[1721378203254,0.38378766,63965.0,63953.0,0.04588578]
[1721378203255,0.156362,63954.0,63953.0,0.04588578]
[1721378203479,0.15438174,63954.0,63943.0,0.05988578]
[1721378203705,0.156373,63950.0,63944.0,0.003094]
[1721378203932,0.312747,63950.0,63944.0,0.003094]
[1721378204161,0.312747,63950.0,63935.0,0.0687702]
[1721378204162,0.07717479,63949.0,63940.0,0.003094]
[1721378204373,0.15639,63943.0,63937.0,0.003094]
[1721378204590,0.07898101,63955.0,63938.0,0.15438174]
[1721378204591,0.2823,63954.0,63938.0,0.15438174]
[1721378204800,0.2823,63954.0,63939.0,0.003094]
[1721378205013,0.312721,63955.0,63940.0,0.15438174]
[1721378205014,0.156371,63951.0,63940.0,0.15438174]
[1721378205226,0.156372,63950.0,63941.0,0.003094]
[1721378205655,0.156374,63949.0,63941.0,0.003094]
[1721378205860,0.35947479,63947.0,63941.0,0.003094]
[1721378206067,0.35947479,63947.0,63938.0,0.003094]
[1721378206068,0.156392,63942.0,63938.0,0.003094]
[1721378206268,0.35947479,63947.0,63929.0,0.003094]
[1721378206463,0.001,63950.0,63930.0,0.15438174]
[1721378206464,0.156388,63944.0,63930.0,0.15438174]
[1721378206670,0.312735,63952.0,63937.0,0.002]
[1721378206887,0.312735,63952.0,63938.0,0.003094]
[1721378206888,0.156399,63939.0,63938.0,0.003094]
[1721378207090,0.156399,63939.0,63930.0,0.15438174]
[1721378207091,0.156399,63939.0,63931.0,0.003094]
[1721378207309,0.156397,63940.0,63932.0,0.15438174]
[1721378207510,0.156397,63940.0,63933.0,0.003094]
[1721378207511,0.156411,63934.0,63933.0,0.003094]
[1721378207722,0.296418,63931.0,63930.0,0.011094]
[1721378207928,0.296418,63931.0,63930.0,0.008]
[1721378207929,0.68642979,63931.0,63930.0,0.008]
[1721378208345,1.15364853,63931.0,63930.0,0.008]
[1721378208544,0.99926679,63931.0,63930.0,0.008]
[1721378208997,0.14,63931.0,63921.0,0.05]
[1721378209203,0.14,63931.0,63923.0,0.05]
[1721378209204,0.0767,63931.0,63923.0,0.05]
[1721378209405,0.1,63940.0,63920.0,0.312889]
[1721378209406,0.312804,63938.0,63931.0,0.027]
[1721378209621,0.312809,63937.0,63931.0,0.013]
[1721378209826,0.1,63941.0,63931.0,0.013]
[1721378209827,0.156416,63932.0,63931.0,0.013]
[1721378210032,0.15643,63926.0,63925.0,0.003094]
[1721378210239,0.15643,63926.0,63910.0,0.05]
[1721378210240,0.156455,63917.0,63910.0,0.05]
[1721378210460,0.07717479,63926.0,63910.0,0.05]
[1721378210461,0.312881,63922.0,63911.0,0.15747574]
[1721378210662,0.07717479,63926.0,63911.0,0.003094]
[1721378210663,0.156462,63913.0,63911.0,0.003094]
[1721378210866,0.07717479,63926.0,63903.0,0.003094]
[1721378211068,0.1,63934.0,63904.0,0.15438174]
[1721378211069,0.312842,63930.0,63904.0,0.15438174]
[1721378211267,0.07717479,63924.0,63905.0,0.003094]
[1721378211492,0.27738174,63929.0,63906.0,0.15438174]
[1721378211493,0.156476,63908.0,63906.0,0.15438174]
[1721378211700,0.156483,63905.0,63899.0,0.003094]
[1721378211900,0.15649,63902.0,63900.0,0.15438174]
[1721378212105,0.312968,63905.0,63901.0,0.003094]
[1721378212106,0.156483,63905.0,63901.0,0.003094]
[1721378212312,0.312952,63908.0,63902.0,0.15438174]
[1721378212527,0.156484,63904.0,63903.0,0.003094]
[1721378212726,0.156487,63903.0,63902.0,0.15438174]
[1721378213580,0.156488,63903.0,63902.0,0.005]
[1721378213953,0.15649,63902.0,63898.0,0.05]
[1721378214167,0.312974,63903.0,63899.0,0.15438174]
[1721378214400,0.783435,63903.0,63902.0,0.011]
[1721378214802,0.784435,63903.0,63902.0,0.011]
[1721378214954,0.78618734,63903.0,63902.0,0.011]
[1721378215579,0.156521,63889.0,63888.0,0.003094]
[1721378215749,0.156525,63888.0,63882.0,0.003094]
[1721378215953,0.00375234,63903.0,63886.0,0.05]
[1721378215954,0.313003,63897.0,63886.0,0.05]
[1721378216157,0.313029,63892.0,63888.0,0.00163655]
[1721378216367,0.156519,63890.0,63888.0,0.00163655]
[1721378216617,0.156518,63891.0,63889.0,0.003094]
[1721378216784,0.00275234,63903.0,63890.0,0.05]
[1721378216785,0.312993,63899.0,63890.0,0.05]
[1721378216937,0.156494,63900.0,63899.0,0.008]
[1721378217140,0.001,63903.0,63902.0,0.519468]
[1721378217379,0.46304871,63915.0,63904.0,0.05]
[1721378217380,0.156469,63911.0,63904.0,0.05]
[1721378217587,0.156469,63911.0,63905.0,0.15747574]
[1721378217588,0.156468,63911.0,63905.0,0.15747574]
[1721378217833,0.156469,63911.0,63905.0,0.15747574]
[1721378218046,0.00175234,63906.0,63905.0,0.20747574]
[1721378218255,0.00175234,63906.0,63905.0,0.20438174]
[1721378218464,0.00175234,63906.0,63905.0,0.67382774]
[1721378218893,0.00175234,63906.0,63905.0,0.36086374]
[1721378219114,0.00175234,63906.0,63905.0,0.05]
[1721378220154,0.156487,63903.0,63900.0,0.05]
[1721378220357,0.00175234,63906.0,63901.0,0.003094]
[1721378220358,0.156489,63902.0,63901.0,0.003094]
[1721378220564,0.00175234,63906.0,63901.0,0.003094]
[1721378220565,0.156489,63903.0,63901.0,0.05]
[1721378220784,0.156488,63903.0,63901.0,0.05]
[1721378221191,0.00275234,63906.0,63901.0,0.05]
[1721378221192,0.00175234,63902.0,63901.0,0.05]
[1721378221394,0.00175234,63902.0,63901.0,0.83034974]
[1721378221609,0.156463,63913.0,63901.0,0.83034974]
[1721378221610,0.156478,63907.0,63904.0,0.05]
[1721378221833,0.15648,63906.0,63904.0,0.15438174]
[1721378222061,0.15648,63906.0,63902.0,0.05]
[1721378222062,0.156487,63904.0,63902.0,0.05]
[1721378222262,0.312955,63907.0,63902.0,0.05]
[1721378222471,0.156466,63912.0,63907.0,0.05]
[1721378222677,0.156467,63911.0,63908.0,0.003094]
[1721378222894,0.156467,63911.0,63906.0,0.05]
[1721378223130,0.07717479,63925.0,63908.0,0.05]
[1721378223131,0.312903,63918.0,63908.0,0.05]
[1721378223351,0.156461,63914.0,63909.0,0.053094]
[1721378223554,0.07717479,63925.0,63907.0,0.31085774]
[1721378223555,0.07717479,63925.0,63907.0,0.20438174]
[1721378223768,0.07717479,63925.0,63908.0,0.003094]
[1721378223769,0.469416,63909.0,63908.0,0.003094]
[1721378223974,0.782397,63906.0,63905.0,0.012]
[1721378224252,0.782397,63906.0,63875.0,0.313107]
[1721378224253,0.156491,63902.0,63890.0,0.003094]
[1721378224458,0.07717479,63915.0,63870.0,0.389934]
[1721378224459,0.07717479,63915.0,63887.0,0.05]
[1721378224680,0.07717479,63915.0,63880.0,0.003094]
[1721378224681,0.469531,63894.0,63888.0,0.05]
[1721378224880,0.469531,63894.0,63887.0,0.05]
[1721378224881,0.156514,63892.0,63887.0,0.05]
[1721378225093,0.31301,63896.0,63888.0,0.05]
[1721378225302,0.312976,63903.0,63900.0,0.05]
[1721378225531,1.29817479,63925.0,63904.0,0.05]
[1721378225532,0.312941,63910.0,63904.0,0.05]
[1721378225732,0.004,63915.0,63904.0,0.05]
[1721378225951,0.004,63915.0,63908.0,0.05]
[1721378226164,0.004,63915.0,63906.0,0.07717479]
[1721378226165,0.014,63925.0,63914.0,0.05]
[1721378226362,0.014,63925.0,63909.0,0.46732374]
[1721378226363,0.00768,63915.0,63910.0,0.206469]
[1721378226566,0.00768,63915.0,63911.0,0.053094]
[1721378226771,0.00768,63915.0,63911.0,0.003094]
[1721378226772,0.156465,63912.0,63911.0,0.003094]
[1721378226980,0.156465,63912.0,63907.0,0.05]
[1721378226981,0.156466,63912.0,63907.0,0.05]
[1721378227249,0.156466,63912.0,63908.0,0.20747574]
[1721378227443,0.312921,63914.0,63908.0,0.20747574]
[1721378227648,0.156463,63913.0,63911.0,0.05]
[1721378227850,0.156463,63913.0,63910.0,0.05]
[1721378228298,0.156465,63912.0,63908.0,0.20438174]
[1721378228500,0.00768,63915.0,63910.0,0.05]
[1721378228708,0.156463,63913.0,63910.0,0.05]
[1721378228862,0.156467,63911.0,63908.0,0.20438174]
[1721378229073,0.312935,63911.0,63903.0,0.05]
[1721378229301,0.156475,63908.0,63904.0,0.29554672]
[1721378229505,0.312944,63910.0,63905.0,0.16247374]
[1721378229506,0.156478,63907.0,63905.0,0.16247374]
[1721378229733,0.156477,63907.0,63906.0,0.29245969]
[1721378230672,0.782385,63907.0,63906.0,0.29245969]
[1721378230897,0.156494,63900.0,63899.0,0.05]
[1721378231106,0.156494,63900.0,63899.0,0.34248944]
[1721378231431,0.782472,63900.0,63899.0,0.29248944]
[1721378231628,0.782472,63900.0,63888.0,0.05]
[1721378231629,0.156519,63890.0,63888.0,0.05]
[1721378231857,0.156517,63891.0,63889.0,0.29252837]
[1721378232059,0.156516,63891.0,63890.0,0.29562237]
[1721378232277,0.156516,63891.0,63890.0,0.29252837]
[1721378232683,0.156516,63891.0,63890.0,0.34252837]
[1721378233244,0.156516,63891.0,63890.0,0.29252837]
[1721378233781,0.156516,63891.0,63890.0,0.34252837]
[1721378233974,0.001,63891.0,63890.0,0.98046711]
[1721378234089,0.31298,63902.0,63896.0,0.05]
[1721378234090,0.156501,63898.0,63896.0,0.05]
[1721378234295,0.156501,63898.0,63897.0,0.29252837]
[1721378234701,0.469499,63898.0,63897.0,0.29252837]
[1721378235115,0.156501,63898.0,63897.0,0.29252837]
[1721378235313,0.469499,63898.0,63897.0,0.29252837]
[1721378235530,0.782497,63898.0,63897.0,0.29252837]
[1721378235736,1.55092344,63898.0,63896.0,0.007]
[1721378235936,1.03688874,63897.0,63896.0,0.007]
[1721378236138,1.34989174,63897.0,63896.0,0.007]
[1721378236343,1.34989174,63897.0,63870.0,0.313132]
[1721378236344,0.156541,63881.0,63880.0,0.003094]
[1721378236585,0.156541,63881.0,63880.0,0.2925807]
[1721378236833,0.469623,63881.0,63880.0,0.2925807]
[1721378237023,0.156541,63881.0,63880.0,0.2925807]
[1721378237223,0.469623,63881.0,63880.0,0.2925807]
[1721378237423,0.469623,63881.0,63880.0,0.13003578]
[1721378237632,0.469623,63881.0,63880.0,0.30659346]
[1721378237633,0.470623,63881.0,63880.0,0.30659346]
[1721378237954,0.783705,63881.0,63880.0,0.32059346]
[1721378238166,0.783705,63881.0,63880.0,0.51896052]
[1721378238167,0.001,63881.0,63880.0,0.51896052]
[1721378238375,0.15652,63890.0,63887.0,0.05]
[1721378238597,0.313027,63893.0,63888.0,0.13312978]
[1721378238598,0.156522,63889.0,63888.0,0.13312978]
[1721378238813,0.156522,63889.0,63888.0,0.13002972]
[1721378239211,0.0638,63907.0,63892.0,0.05]
[1721378239474,0.0638,63907.0,63889.0,0.003094]
[1721378239475,0.0638,63907.0,63894.0,0.12717479]
[1721378239677,0.156496,63900.0,63897.0,0.05]
[1721378239819,0.312984,63901.0,63898.0,0.13312372]
[1721378240020,0.0638,63907.0,63899.0,0.13002972]
[1721378240021,0.156494,63900.0,63899.0,0.13002972]
[1721378240438,0.156492,63901.0,63899.0,0.18002972]
[1721378240634,0.156492,63901.0,63900.0,0.13002972]
[1721378240835,0.156492,63901.0,63900.0,0.29250443]
[1721378241267,0.00083,63909.0,63904.0,0.05]
[1721378241464,0.00083,63909.0,63908.0,0.12717479]
[1721378241638,0.00083,63909.0,63908.0,0.88699145]
[1721378242065,0.00083,63909.0,63908.0,1.23840825]
[1721378242479,0.00083,63909.0,63908.0,1.23840645]
[1721378242928,0.00083,63909.0,63908.0,0.92545745]
[1721378243156,0.00083,63909.0,63908.0,1.23840645]
[1721378243355,0.312898,63919.0,63911.0,0.156466]
[1721378243356,0.156451,63918.0,63911.0,0.156466]
[1721378243553,0.156454,63917.0,63913.0,0.0186897]
[1721378243919,0.312902,63918.0,63914.0,0.50610258]
[1721378244120,0.156454,63917.0,63915.0,0.12997706]
[1721378244334,0.5,63950.0,63916.0,0.2843588]
[1721378244549,0.07717479,63956.0,63916.0,0.2843588]
[1721378244550,0.156438,63924.0,63920.0,0.05]
[1721378244758,0.156438,63923.0,63921.0,0.12997706]
[1721378244961,0.156438,63923.0,63921.0,0.12995746]
[1721378245185,0.08,63939.0,63926.0,0.05]
[1721378245186,0.312823,63934.0,63926.0,0.05]
[1721378245400,0.312761,63947.0,63930.0,0.05]
[1721378245401,0.156406,63937.0,63930.0,0.05]
[1721378245610,0.156411,63934.0,63931.0,0.12995535]
[1721378245821,0.376175,63944.0,63932.0,0.12995535]
[1721378245822,0.156413,63933.0,63932.0,0.12995535]
[1721378246253,0.156409,63935.0,63932.0,0.12995535]
[1721378246467,0.156409,63935.0,63933.0,0.13274935]
[1721378246670,0.156409,63935.0,63934.0,0.12995535]
[1721378247590,0.312802,63939.0,63934.0,0.12995535]
[1721378247591,0.156405,63937.0,63934.0,0.12995535]
[1721378247805,0.156405,63937.0,63932.0,0.05]
[1721378248019,0.156376,63949.0,63943.0,0.05]
[1721378248248,0.0659,63950.0,63943.0,0.05]
[1721378248249,0.312745,63950.0,63944.0,0.12993902]
[1721378248463,0.312745,63950.0,63945.0,0.12993902]
[1721378248464,0.156378,63948.0,63945.0,0.12993902]
[1721378248661,0.156379,63947.0,63946.0,0.12993902]
[1721378249298,0.00832,63955.0,63954.0,0.156362]
[1721378249557,0.00832,63955.0,63954.0,0.12993902]
[1721378250854,0.156332,63967.0,63958.0,0.15635]
[1721378251059,0.312663,63967.0,63959.0,0.28426082]
[1721378251274,0.156331,63967.0,63960.0,0.17987908]
[1721378251511,0.156329,63968.0,63960.0,0.206347]
[1721378252346,0.00832,63971.0,63962.0,0.05]
[1721378252549,0.00832,63971.0,63964.0,0.206337]
[1721378252728,0.164641,63971.0,63964.0,0.206337]
[1721378252963,0.00832,63971.0,63965.0,0.67338674]
[1721378253381,0.00832,63971.0,63965.0,0.80325029]
[1721378253591,0.00832,63971.0,63965.0,0.67338674]
[1721378253808,0.0183324,63966.0,63965.0,0.67338674]
[1721378254236,0.0143324,63966.0,63965.0,0.67338674]
[1721378254441,0.0143324,63966.0,63965.0,0.67738674]
[1721378254908,0.10018867,63986.0,63965.0,0.67738674]
[1721378254909,1e-08,63973.0,63972.0,0.206318]
[1721378255135,1e-08,63973.0,63972.0,0.15438174]
[1721378255565,1e-08,63973.0,63969.0,0.0645]
[1721378255566,1e-08,63973.0,63969.0,0.1145]
[1721378255783,1e-08,63973.0,63971.0,0.05]
[1721378256029,1e-08,63973.0,63972.0,0.05]
[1721378256254,1e-08,63973.0,63971.0,0.15438174]
[1721378256674,1e-08,63973.0,63972.0,0.15438174]
[1721378256893,0.00200001,63973.0,63972.0,0.20438174]
[1721378257115,0.00200001,63973.0,63972.0,0.15438174]
[1721378257324,0.00200001,63973.0,63966.0,0.00868601]
[1721378257539,0.15633,63967.0,63966.0,0.00868601]
[1721378257989,0.312637,63972.0,63966.0,0.16306775]
[1721378258250,1e-08,63973.0,63972.0,0.05]
[1721378258459,1e-08,63973.0,63972.0,0.20438174]
[1721378258873,1e-08,63973.0,63972.0,0.15438174]
[1721378259075,0.15562253,63972.0,63968.0,0.1303]
[1721378259301,1e-08,63973.0,63972.0,0.05]
[1721378259748,1e-08,63973.0,63972.0,0.20438174]
[1721378260990,0.156318,63972.0,63970.0,0.05]
[1721378261197,0.156318,63972.0,63970.0,0.15438174]
[1721378261425,0.00200001,63973.0,63970.0,0.15438174]
[1721378261426,1e-08,63973.0,63971.0,0.002794]
[1721378261649,0.468954,63972.0,63971.0,0.002794]
[1721378261878,0.468984,63968.0,63967.0,0.00868601]
[1721378262087,0.156323,63970.0,63967.0,0.05868601]
[1721378262361,0.312637,63972.0,63970.0,0.05]
[1721378262362,0.15632,63972.0,63970.0,0.05]
[1721378262571,0.15632,63972.0,63971.0,0.002794]
[1721378262791,1e-08,63973.0,63972.0,0.05]
[1721378263001,1e-08,63973.0,63972.0,0.20438174]
[1721378264663,1e-08,63973.0,63972.0,0.36069974]
[1721378264809,1e-08,63973.0,63972.0,0.20438174]
[1721378264992,1e-08,63973.0,63972.0,0.36069974]
[1721378265192,0.00083001,63973.0,63972.0,0.26699274]
[1721378265397,0.00083001,63973.0,63972.0,0.070611]
[1721378265769,0.00083001,63973.0,63972.0,0.008]
[1721378265959,0.29824501,63973.0,63972.0,0.008]
[1721378266103,0.92254065,63973.0,63972.0,0.008]
[1721378266527,1.23517165,63973.0,63972.0,0.008]
[1721378267142,0.312617,63976.0,63972.0,0.008]
[1721378267356,0.31275767,63986.0,63973.0,0.05]
[1721378267357,0.156312,63975.0,63973.0,0.05]
[1721378267493,0.159315,63973.0,63972.0,0.006]
[1721378267699,0.003,63973.0,63972.0,0.006]
[1721378267973,0.156315,63974.0,63972.0,0.05]
[1721378268179,0.156315,63974.0,63971.0,0.05]
[1721378268466,0.312584,63983.0,63969.0,0.0602]
[1721378268467,0.003,63976.0,63975.0,0.05]
[1721378268723,0.003,63976.0,63975.0,0.36069274]
[1721378268939,0.156298,63980.0,63979.0,0.05]
[1721378269144,0.156298,63980.0,63975.0,0.20438174]
[1721378269372,0.156298,63980.0,63977.0,0.05]
[1721378269577,0.156298,63980.0,63979.0,0.00868601]
[1721378270247,0.468895,63980.0,63979.0,0.00868601]
[1721378270453,0.156311,63975.0,63970.0,0.002794]
[1721378270665,0.156309,63976.0,63971.0,0.33422863]
[1721378270871,0.00018867,63986.0,63971.0,0.33422863]
[1721378270872,0.312588,63982.0,63975.0,0.05]
[1721378271073,0.312588,63982.0,63979.0,0.05]
[1721378271074,0.156298,63981.0,63979.0,0.05]
[1721378271296,0.156298,63981.0,63980.0,0.05]
[1721378271500,0.156298,63980.0,63976.0,0.15438174]
[1721378271706,0.156298,63980.0,63979.0,0.05]
[1721378272321,0.156298,63980.0,63978.0,0.05]
[1721378272322,0.15629901,63980.0,63978.0,0.05]
[1721378272523,0.15629901,63980.0,63979.0,0.002794]
[1721378272962,0.15438174,63979.0,63965.0,0.01864496]
[1721378273188,0.15438174,63979.0,63955.0,0.000913]
[1721378273189,0.156357,63956.0,63955.0,0.000913]
[1721378273395,0.469071,63956.0,63955.0,0.13079992]
[1721378273568,0.469071,63956.0,63955.0,0.000913]
[1721378274114,0.46037371,63956.0,63955.0,0.000913]
[1721378274513,0.156343,63962.0,63957.0,0.05]
[1721378274725,0.002794,63977.0,63955.0,0.13080681]
[1721378274726,0.1,63977.0,63961.0,0.05]
[1721378275124,0.156331,63967.0,63961.0,0.05]
[1721378275320,0.156331,63967.0,63962.0,0.12986931]
[1721378275514,0.15438174,63979.0,63963.0,0.12986931]
[1721378275515,0.312637,63972.0,63963.0,0.12986931]
[1721378275715,0.312637,63972.0,63958.0,0.23155653]
[1721378275716,0.156335,63965.0,63964.0,0.12987317]
[1721378276072,0.781675,63965.0,63964.0,0.12987317]
[1721378276523,0.156335,63965.0,63964.0,0.12987317]
[1721378276764,0.312643,63971.0,63965.0,0.05]
[1721378276938,0.312652,63969.0,63966.0,0.12987317]
[1721378277155,0.159123,63968.0,63967.0,0.12987317]
[1721378277375,0.781641,63968.0,63967.0,0.12987317]
[1721378277545,0.468985,63968.0,63967.0,0.12987317]
[1721378277960,0.005,63971.0,63967.0,0.12987317]
[1721378278165,0.005,63971.0,63967.0,0.00869827]
[1721378278360,0.005,63972.0,63968.0,0.12986913]
[1721378278561,0.156322,63971.0,63969.0,0.12986913]
[1721378278737,0.156322,63971.0,63970.0,0.12986913]
[1721378279744,0.156328,63968.0,63967.0,0.00969827]
[1721378279951,0.78164,63968.0,63967.0,0.1395658]
[1721378280199,1.094296,63968.0,63967.0,0.1385658]
[1721378280581,1.2041256,63968.0,63967.0,0.1385658]
[1721378280805,1.094296,63968.0,63967.0,0.1385658]
[1721378280983,1.094296,63968.0,63967.0,0.13857971]
[1721378281187,1.56533374,63968.0,63967.0,0.13957971]
[1721378281413,1.56533374,63968.0,63967.0,0.00969827]
[1721378282168,1.5651456,63968.0,63967.0,0.00969827]
[1721378283178,1.5611456,63968.0,63967.0,0.00869827]
[1721378283449,1.7041456,63968.0,63967.0,0.00869827]
[1721378283683,1.7271456,63968.0,63967.0,0.00869827]
[1721378283868,1.7311456,63968.0,63967.0,0.01069827]
[1721378284285,1.7311456,63968.0,63964.0,5.0]
[1721378284286,0.781675,63965.0,63964.0,5.0]
[1721378284466,0.781675,63965.0,63964.0,3.6544]
[1721378284467,1.73874631,63965.0,63964.0,3.6544]
[1721378284882,2.15141631,63965.0,63964.0,3.6544]
[1721378285300,1.99706674,63965.0,63964.0,3.6544]
[1721378286387,2.40113674,63965.0,63964.0,3.15412196]
[1721378286594,2.40113674,63965.0,63964.0,3.11918148]
[1721378286750,2.58846674,63965.0,63964.0,3.11918148]
[1721378287396,2.74281631,63965.0,63964.0,3.11918148]
[1721378287600,2.75681631,63965.0,63964.0,3.02537748]
[1721378287798,2.75681631,63965.0,63964.0,2.96284148]
[1721378288023,2.74281631,63965.0,63964.0,2.96284148]
[1721378288248,2.74281631,63965.0,63964.0,2.96184148]
[1721378288249,1.77579674,63965.0,63964.0,2.96184148]
[1721378288421,1.78979674,63965.0,63964.0,2.96184148]
[1721378288643,1.80379674,63965.0,63964.0,2.96284148]
[1721378288844,1.80379674,63965.0,63964.0,2.96184148]
[1721378288845,1.78979674,63965.0,63964.0,2.96184148]
[1721378289182,1.78979674,63965.0,63964.0,2.96284148]
[1721378289501,1.94414631,63965.0,63964.0,2.96184148]
[1721378289713,1.78979674,63965.0,63964.0,2.96184148]
[1721378289963,1.80379674,63965.0,63964.0,2.96284148]
[1721378290894,1.81779674,63965.0,63964.0,2.96284148]
[1721378291640,1.75169674,63965.0,63964.0,2.96284148]
[1721378291841,1.76569674,63965.0,63964.0,2.96284148]
[1721378292200,1.66569674,63965.0,63964.0,2.96284148]
[1721378293851,1.82004631,63965.0,63964.0,2.96284148]
[1721378294081,1.84304631,63965.0,63964.0,2.96284148]
[1721378295113,2.15571631,63965.0,63964.0,2.96284148]
[1721378295329,2.25571631,63965.0,63964.0,2.96284148]
[1721378296276,2.10136674,63965.0,63964.0,2.96284148]
[1721378296452,1.78869674,63965.0,63964.0,2.96284148]
[1721378298478,1.78869674,63965.0,63964.0,2.96375448]
[1721378299085,2.11111063,63965.0,63964.0,2.96375448]
[1721378299290,2.11111083,63965.0,63964.0,2.96375448]
[1721378299510,2.2654604,63965.0,63964.0,2.80741448]
[1721378299843,2.33548365,63965.0,63964.0,2.80741448]
[1721378300043,2.41545244,63965.0,63964.0,2.80741448]
[1721378300241,2.24856478,63965.0,63964.0,2.80741448]
[1721378300475,2.17854153,63965.0,63964.0,2.68234248]
[1721378300699,2.27469987,63965.0,63964.0,2.65107448]
[1721378300902,2.27190587,63965.0,63964.0,2.65107448]
[1721378301102,2.27188569,63965.0,63964.0,2.65107448]
[1721378301388,2.18133553,63965.0,63964.0,2.65107448]
[1721378301580,2.3328911,63965.0,63964.0,2.65107448]
[1721378301985,2.8328911,63965.0,63964.0,2.65107448]
[1721378302209,2.9262263,63965.0,63964.0,2.65107448]
[1721378302531,2.86102728,63965.0,63964.0,2.65107448]
[1721378302727,1.81683292,63965.0,63964.0,2.65107448]
[1721378302940,1.70339674,63965.0,63964.0,2.65107448]
[1721378303500,1.71313988,63965.0,63964.0,2.65107448]
[1721378305340,1.40046988,63965.0,63964.0,2.65107448]
[1721378305976,1.30046988,63965.0,63964.0,2.65107448]
[1721378306836,0.198335,63965.0,63964.0,2.65107448]
[1721378307220,0.511005,63965.0,63964.0,2.65107448]
[1721378307450,0.497005,63965.0,63964.0,2.65107448]
[1721378307869,0.198335,63965.0,63964.0,2.65107448]
[1721378308047,0.042,63965.0,63964.0,2.65107448]
[1721378308283,0.028,63965.0,63964.0,2.65107448]
[1721378308432,0.00083,63968.0,63964.0,2.65007448]
[1721378308634,0.013,63965.0,63964.0,2.65007448]
[1721378308839,0.025,63965.0,63964.0,2.65107448]
[1721378310013,0.012,63965.0,63964.0,2.65107448]
[1721378310215,0.168335,63965.0,63964.0,2.65107448]
[1721378311315,0.181335,63965.0,63964.0,2.65107448]
[1721378313386,0.025,63965.0,63964.0,2.65107448]
[1721378313986,0.181335,63965.0,63964.0,2.65107448]
[1721378314193,0.025,63965.0,63964.0,2.65107448]
[1721378316592,0.00083,63968.0,63967.0,0.05]
[1721378317663,0.00083,63968.0,63964.0,2.73137448]
[1721378317863,0.00083,63968.0,63964.0,2.78137448]
[1721378318066,0.00083,63968.0,63966.0,0.05]
[1721378318452,0.00583,63968.0,63966.0,0.05]
[1721378318649,0.00583,63968.0,63967.0,0.05]
[1721378319429,0.00883,63968.0,63966.0,0.05]
[1721378319631,0.00883,63968.0,63964.0,2.73137448]
[1721378319819,0.156334,63966.0,63964.0,2.73137448]
[1721378320152,0.002794,63965.0,63964.0,2.73137448]
[1721378322064,0.471799,63965.0,63964.0,2.73137448]
[1721378322226,0.469005,63965.0,63964.0,2.73137448]